[Event "FIDE World Cup O12-A 2024"]
[Site "Batumi"]
[Date "2024.06.26"]
[Round "4.1"]
[White "Obidov, Biloliddin"]
[Black "Siddhanth Poonja"]
[Result "1/2-1/2"]
[ECO "B06"]
[WhiteElo "1998"]
[BlackElo "1958"]
[Annotator "NA RC"]
[PlyCount "107"]
[EventDate "2024.06.23"]
[EventType "swiss"]
[EventCountry "GEO"]
[SourceTitle "playchess.com"]
[Source "ChessBase"]
[SourceQuality "1"]
[TimeControl "5400+30"]

1. e4 {[%emt 0:00:01]} c5 {[%emt 0:00:11]} 2. Nf3 {[%emt 0:00:07]} g6 {[%emt 0:00:06]} 3. c3 {[%emt 0:00:04]} d5 {[%emt 0:00:07]} 4. exd5 {[%emt 0:00:09]} Qxd5 {[%emt 0:00:12]} 5. d4 {[%emt 0:00:05]} Bg7 {[%emt 0:00:12]} 6. Na3 {[%emt 0:00:25]} cxd4 {[%emt 0:00:08]} 7. Bc4 {[%emt 0:00:30]} Qe4+ {[%emt 0:00:06]} 8. Be3 {[%emt 0:00:17]} Nh6 {[%emt 0:00:07]} 9. cxd4 {[%emt 0:03:08]} O-O {[%emt 0:03:02]} 10. Nb5 {[%emt 0:00:24]} Na6 {[%emt 0:06:57]} (10... Nc6 $11) 11. Nc3 {[%emt 0:04:05]} (11. Qb3 $1 $14) 11... Qf5 {[%emt 0:23:12]} (11... Qc6 $11 12. Qb3 Nc7) 12. h3 {[%emt 0:05:38]} Qa5 $1 {[%emt 0:03:10]} 13. g4 {[%emt 0:13:38]} b5 {[%emt 0:06:08]} 14. Bd5 {[%emt 0:25:53]} Rb8 {[%emt 0:00:41]} 15. Ne5 {[%emt 0:01:55]} Bxe5 {[%emt 0:09:15]} 16. dxe5 {[%emt 0:01:09]} Rd8 {[%emt 0:00:06]} 17. Bxh6 $11 {[%emt 0:13:56]} Bb7 {[%emt 0:13:22]} 18. O-O {[%emt 0:08:07]} b4 {[%emt 0:00:45]} 19. Bxf7+ {[%emt 0:04:42]} Kxf7 {[%emt 0:00:21]} 20. Qb3+ {[%emt 0:00:01]} e6 {[%emt 0:02:24]} 21. Ne2 {[%emt 0:00:13]} Qxe5 {[%emt 0:02:05]} 22. Qe3 {[%emt 0:04:55]} Qe4 {[%emt 0:05:15]} 23. Qxe4 {[%emt 0:01:26]} Bxe4 {[%emt 0:00:02]} 24. Be3 {[%emt 0:00:25]} Bf3 {[%emt 0:05:45]} 25. Nd4 {[%emt 0:01:22]} Bd5 {[%emt 0:00:12]} 26. b3 {[%emt 0:00:51]} e5 {[%emt 0:01:04]} 27. Nc2 {[%emt 0:00:30]} Be4 {[%emt 0:01:10]} 28. Rfc1 {[%emt 0:00:12]} h5 {[%emt 0:01:48]} 29. Ne1 {[%emt 0:00:44]} hxg4 {[%emt 0:00:50]} 30. hxg4 {[%emt 0:00:01]} Rh8 {[%emt 0:01:21]} 31. f3 {[%emt 0:00:04]} Bd5 {[%emt 0:00:03]} 32. Rd1 {[%emt 0:00:14]} Ke6 {[%emt 0:00:16]} 33. Rd2 {[%emt 0:01:08]} Rh7 {[%emt 0:02:47]} 34. Rad1 {[%emt 0:00:22]} Rb5 {[%emt 0:14:20]} 35. Bf2 {[%emt 0:01:18]} Rc7 {[%emt 0:00:00]} 36. Kg2 {[%emt 0:01:44]} Nb8 {[%emt 0:00:00]} 37. Nd3 {[%emt 0:00:34]} a5 {[%emt 0:00:00]} 38. Bg3 {[%emt 0:00:47]} Nd7 {[%emt 0:00:00]} 39. Re1 {[%emt 0:00:10]} Bb7 {[%emt 0:00:00]} 40. Rde2 {[%emt 0:00:47]} Kf7 {[%emt 0:00:00]} 41. Bxe5 {[%emt 0:00:25]} Nxe5 {[%emt 0:00:04]} 42. Nxe5+ {[%emt 0:00:00]} Kg7 {[%emt 0:00:09]} 43. Nc4 {[%emt 0:00:57]} Rf7 {[%emt 0:00:54]} 44. Re3 {[%emt 0:00:09]} Rd5 {[%emt 0:02:02]} 45. Re7 {[%emt 0:00:24]} Ba6 {[%emt 0:00:14]} 46. Rxf7+ {[%emt 0:02:40]} Kxf7 {[%emt 0:00:02]} 47. Re2 {[%emt 0:01:47]} Bxc4 {[%emt 0:00:57]} 48. bxc4 {[%emt 0:00:03]} Rd3 {[%emt 0:00:09]} 49. Kg3 {[%emt 0:01:00]} Rc3 {[%emt 0:00:24]} 50. Re5 {[%emt 0:00:06]} Ra3 {[%emt 0:01:10]} 51. Re2 {[%emt 0:01:07]} Rc3 {[%emt 0:00:04]} 52. Re5 {[%emt 0:00:46]} Ra3 {[%emt 0:00:50]} 53. Re2 {[%emt 0:03:52]} Rc3 {[%emt 0:00:09]} 54. Re5 {[%emt 0:01:08]} 1/2-1/2

[Event "FIDE World Cup O12-A 2024"]
[Site "Batumi"]
[Date "2024.06.26"]
[Round "4.2"]
[White "Syed Abdul Khader"]
[Black "Yang, ZiLong"]
[Result "1-0"]
[ECO "B22"]
[WhiteElo "2050"]
[BlackElo "1874"]
[Annotator "NA RC"]
[PlyCount "145"]
[EventDate "2024.06.23"]
[EventType "swiss"]
[EventCountry "GEO"]
[SourceTitle "playchess.com"]
[Source "ChessBase"]
[SourceQuality "1"]
[TimeControl "5400+30"]

1. e4 {[%emt 0:00:02]} c5 {[%emt 0:00:07]} 2. c3 {[%emt 0:00:06]} d5 {[%emt 0:00:05]} 3. exd5 {[%emt 0:00:07]} Qxd5 {[%emt 0:00:04]} 4. d4 {[%emt 0:00:03]} Nf6 {[%emt 0:00:14]} 5. Nf3 {[%emt 0:00:21]} Nc6 {[%emt 0:00:11]} 6. Be3 {[%emt 0:02:00]} cxd4 {[%emt 0:00:33]} 7. cxd4 {[%emt 0:00:11]} e6 {[%emt 0:00:08]} 8. Nc3 {[%emt 0:00:13]} Qd6 {[%emt 0:00:04]} 9. Bd3 {[%emt 0:04:15]} Be7 {[%emt 0:03:04]} 10. O-O {[%emt 0:00:08]} O-O {[%emt 0:00:30]} 11. a3 {[%emt 0:00:25]} b6 {[%emt 0:09:46]} 12. Rc1 {[%emt 0:01:55]} Bb7 {[%emt 0:00:21] B22: Sicilian: 2 c3.} 13. h3 {[%emt 0:03:29]} Rac8 {[%emt 0:07:32]} 14. Qe2 {[%emt 0:00:59]} Rfd8 {[%emt 0:04:55]} 15. Rfd1 {[%emt 0:01:48]} Nd5 {[%emt 0:15:20]} 16. Bb1 {[%emt 0:31:04]} Nxe3 {[%emt 0:11:01]} 17. fxe3 {[%emt 0:02:32]} Qg3 {[%emt 0:03:16]} 18. Ne4 {[%emt 0:02:05]} Qb8 {[%emt 0:00:11]} 19. Nfg5 $11 {[%emt 0:10:43]} g6 {[%emt 0:18:11]} 20. Rf1 {[%emt 0:06:11]} Rf8 {[%emt 0:01:01]} 21. Rc3 {[%emt 0:11:40]} Kg7 {[%emt 0:09:33]} 22. Qg4 {[%emt 0:06:16]} h5 {[%emt 0:06:58]} 23. Qe2 {[%emt 0:06:03]} Nd8 {[%emt 0:00:35]} 24. Rxc8 {[%emt 0:03:44]} Qxc8 {[%emt 0:00:01]} 25. Nf3 {[%emt 0:00:45]} Nc6 {[%emt 0:00:40]} 26. Nc3 {[%emt 0:01:10]} Qd7 {[%emt 0:00:59]} 27. Be4 {[%emt 0:00:23]} Bf6 {[%emt 0:00:34]} 28. Qf2 {[%emt 0:01:45]} Bd8 {[%emt 0:02:27]} 29. Bxc6 {[%emt 0:04:37]} Qxc6 {[%emt 0:00:30]} 30. Ne5 {[%emt 0:00:00]} Qe8 {[%emt 0:00:05]} 31. Ne2 {[%emt 0:00:00]} f6 {[%emt 0:00:21]} 32. Nf4 {[%emt 0:00:00]} Be4 {[%emt 0:00:25]} 33. Nc4 {[%emt 0:00:00]} Bc7 {[%emt 0:00:27]} 34. Rc1 {[%emt 0:00:07]} Bb8 {[%emt 0:00:40]} 35. Nd2 {[%emt 0:01:36]} Bb7 {[%emt 0:00:03]} 36. Ne2 {[%emt 0:01:07]} e5 {[%emt 0:00:40]} 37. Nc3 {[%emt 0:00:28]} Qd7 {[%emt 0:00:40]} 38. d5 {[%emt 0:00:37]} Bxd5 {[%emt 0:00:22]} 39. Nxd5 {[%emt 0:00:13]} Qxd5 {[%emt 0:00:03]} 40. e4 {[%emt 0:00:12]} Qe6 {[%emt 0:01:38]} 41. Nf1 {[%emt 0:01:06]} f5 {[%emt 0:00:22]} 42. Qf3 {[%emt 0:00:22]} f4 {[%emt 0:00:14]} 43. Nd2 {[%emt 0:00:32]} Rd8 {[%emt 0:00:26]} 44. Qc3 {[%emt 0:00:12]} Qd6 {[%emt 0:01:12]} 45. Nf3 {[%emt 0:00:05]} Qe7 {[%emt 0:00:30]} 46. h4 {[%emt 0:00:27]} Qe6 {[%emt 0:02:16]} 47. Ng5 {[%emt 0:00:29]} Qd7 {[%emt 0:01:23]} 48. Qb3 {[%emt 0:00:13]} Re8 {[%emt 0:00:53]} 49. Rd1 {[%emt 0:00:27]} Qe7 {[%emt 0:00:03]} 50. Rd5 {[%emt 0:00:14]} a6 {[%emt 0:00:14]} 51. Qd3 {[%emt 0:00:18]} Qf6 {[%emt 0:00:41]} 52. Rd7+ {[%emt 0:00:39]} Re7 {[%emt 0:00:03]} 53. Qd5 {[%emt 0:00:29]} b5 {[%emt 0:00:29]} 54. Rd8 {[%emt 0:00:29]} Ba7+ {[%emt 0:00:47]} 55. Kh2 {[%emt 0:00:14]} f3 {[%emt 0:00:25]} 56. gxf3 {[%emt 0:01:16]} Bf2 {[%emt 0:00:44]} 57. Qg8+ {[%emt 0:00:10]} Kh6 {[%emt 0:00:03]} 58. Rf8 {[%emt 0:00:18]} Qg7 {[%emt 0:00:55]} 59. Nf7+ {[%emt 0:00:04]} Rxf7 {[%emt 0:00:05]} 60. Qxf7 {[%emt 0:00:07]} Qxf7 {[%emt 0:00:53]} 61. Rxf7 {[%emt 0:00:02]} Bd4 {[%emt 0:00:04]} 62. b3 {[%emt 0:00:47]} Bc5 {[%emt 0:00:06]} 63. Rf6 {[%emt 0:00:36]} Bxa3 {[%emt 0:00:27]} 64. Rxa6 {[%emt 0:00:01]} Bc1 {[%emt 0:00:06]} 65. Rb6 {[%emt 0:00:10]} Be3 {[%emt 0:00:14]} 66. Rxb5 {[%emt 0:00:05]} g5 {[%emt 0:00:02]} 67. hxg5+ {[%emt 0:00:19]} Kxg5 {[%emt 0:00:02]} 68. Rxe5+ {[%emt 0:00:08]} Kh4 {[%emt 0:00:10]} 69. Rf5 {[%emt 0:00:11]} Bf2 {[%emt 0:00:19]} 70. Rf7 {[%emt 0:00:12]} Bg3+ {[%emt 0:00:02]} 71. Kg2 {[%emt 0:00:02]} Bb8 {[%emt 0:00:07]} 72. b4 {[%emt 0:00:06]} Kg5 {[%emt 0:07:58]} 73. b5 {[%emt 0:06:50]} 1-0

[Event "FIDE World Cup O12-A 2024"]
[Site "Batumi"]
[Date "2024.06.26"]
[Round "4.3"]
[White "Mamikonyan, Artem T"]
[Black "Wang, Ted"]
[Result "1/2-1/2"]
[ECO "B31"]
[WhiteElo "1855"]
[BlackElo "2034"]
[Annotator "NA RC"]
[PlyCount "76"]
[EventDate "2024.06.23"]
[EventType "swiss"]
[EventCountry "GEO"]
[SourceTitle "playchess.com"]
[Source "ChessBase"]
[SourceQuality "1"]
[TimeControl "5400+30"]

1. e4 {[%emt 0:00:02]} c5 {[%emt 0:00:06]} 2. Nf3 {[%emt 0:00:05]} Nc6 {[%emt 0:00:09]} 3. Bb5 {[%emt 0:00:04]} g6 {[%emt 0:00:05]} 4. O-O {[%emt 0:00:17]} Bg7 {[%emt 0:00:04]} 5. Re1 {[%emt 0:00:06]} Nf6 {[%emt 0:00:06]} 6. c3 {[%emt 0:00:16]} O-O {[%emt 0:00:10]} 7. d4 {[%emt 0:00:28]} d5 {[%emt 0:00:11]} 8. e5 {[%emt 0:00:25]} Ne4 {[%emt 0:00:05]} 9. Nbd2 {[%emt 0:00:51]} cxd4 {[%emt 0:00:10]} 10. cxd4 {[%emt 0:00:12]} Qb6 {[%emt 0:00:03] B31: Sicilian: 2...Nc6 3 Bb5 g6.} 11. Bxc6 {[%emt 0:02:45]} Qxc6 {[%emt 0:00:02]} 12. Qe2 {[%emt 0:08:48]} Be6 {[%emt 0:06:41]} 13. Nxe4 {[%emt 0:10:11]} dxe4 {[%emt 0:00:05]} 14. Ng5 {[%emt 0:00:42]} Bd5 {[%emt 0:01:11]} 15. Nxe4 {[%emt 0:00:41]} f5 {[%emt 0:02:48]} 16. Ng5 $1 {[%emt 0:00:37]} e6 {[%emt 0:01:02]} 17. f3 {[%emt 1:12:30]} Rac8 {[%emt 0:02:23]} 18. Nh3 {[%emt 0:00:00]} Qa4 {[%emt 0:06:21]} 19. Be3 {[%emt 0:00:00]} Rc2 {[%emt 0:11:04]} 20. Qd1 {[%emt 0:00:00]} Qc6 {[%emt 0:05:41]} 21. Rc1 {[%emt 0:00:00]} Rc8 {[%emt 0:03:05]} 22. b3 {[%emt 0:00:00]} Rxc1 {[%emt 0:06:34]} 23. Qxc1 {[%emt 0:00:00]} Qxc1 {[%emt 0:00:34]} 24. Rxc1 {[%emt 0:00:00]} Rxc1+ {[%emt 0:00:50]} 25. Bxc1 {[%emt 0:00:00]} Kf7 {[%emt 0:00:48]} 26. Nf4 {[%emt 0:00:00]} Bc6 {[%emt 0:00:09]} 27. Nd3 {[%emt 0:00:00]} b6 {[%emt 0:02:24]} 28. Kf2 {[%emt 0:00:00]} Bf8 {[%emt 0:01:21]} 29. Bd2 $14 {[%emt 0:00:00]} (29. Bg5 $16) 29... Ke8 {[%emt 0:03:25]} 30. h4 {[%emt 0:00:00]} Kd7 {[%emt 0:02:53]} 31. Bb4 {[%emt 0:00:00]} Bh6 {[%emt 0:03:02]} 32. g4 {[%emt 0:00:00]} Bb5 {[%emt 0:05:58]} 33. Ke2 {[%emt 0:00:00]} a5 {[%emt 0:02:29]} 34. g5 {[%emt 0:00:00]} axb4 {[%emt 0:08:08]} 35. gxh6 {[%emt 0:00:00]} Kc6 {[%emt 0:00:08]} 36. Ke3 {[%emt 0:00:00]} Bxd3 {[%emt 0:00:09]} 37. Kxd3 {[%emt 0:00:00]} Kd5 {[%emt 0:00:10]} 38. f4 {[%emt 0:00:00]} b5 {[%emt 0:00:09]} 1/2-1/2

[Event "FIDE World Cup O12-A 2024"]
[Site "Batumi"]
[Date "2024.06.26"]
[Round "4.4"]
[White "Sobirov, Afruzbek"]
[Black "Bulgak, Damir"]
[Result "1/2-1/2"]
[ECO "D00"]
[WhiteElo "1789"]
[BlackElo "1931"]
[Annotator "NA RC"]
[PlyCount "117"]
[EventDate "2024.06.23"]
[EventType "swiss"]
[EventCountry "GEO"]
[SourceTitle "playchess.com"]
[Source "ChessBase"]
[SourceQuality "1"]
[TimeControl "5400+30"]

1. d4 {[%emt 0:00:10]} Nf6 {[%emt 0:00:07]} 2. Nc3 {[%emt 0:00:15]} d5 {[%emt 0:00:04]} 3. Bf4 {[%emt 0:00:09]} g6 {[%emt 0:00:06]} 4. e3 {[%emt 0:00:13]} Bg7 {[%emt 0:00:10]} 5. h4 {[%emt 0:00:15]} h5 {[%emt 0:00:08]} 6. Nf3 {[%emt 0:00:46]} O-O {[%emt 0:03:04]} 7. Nb5 {[%emt 0:00:17]} Na6 {[%emt 0:00:12]} 8. Ne5 {[%emt 0:00:13]} Ne4 {[%emt 0:03:08]} (8... c6 $11 9. Nc3 Qa5) 9. f3 {[%emt 0:04:23]} Nf6 {[%emt 0:05:14]} 10. Be2 {[%emt 0:02:25]} c5 {[%emt 0:01:48]} 11. Qd2 {[%emt 0:03:45]} Bf5 {[%emt 0:14:38]} 12. a3 {[%emt 0:14:40]} Qb6 $1 {[%emt 0:07:19]} 13. O-O-O {[%emt 0:06:04]} Rac8 {[%emt 0:00:57]} 14. Nc3 {[%emt 0:03:09]} cxd4 {[%emt 0:05:24]} 15. exd4 {[%emt 0:00:10]} Rfd8 {[%emt 0:12:50]} (15... Rxc3 $1 $11 16. bxc3 (16. Qxc3 $2 {too greedy.} Rc8 $19) 16... Rc8) 16. Qe3 {[%emt 0:07:26]} Qa5 $16 {[%emt 0:13:59]} ({Better is} 16... Rxc3 $1 $14 17. bxc3 Qa5) 17. g4 {[%emt 0:06:43]} hxg4 {[%emt 0:04:38]} 18. fxg4 {[%emt 0:00:14]} Ne4 {[%emt 0:02:47]} 19. gxf5 {[%emt 0:03:34]} Rxc3 {[%emt 0:02:56]} 20. Rd3 {[%emt 0:00:07]} Rdc8 {[%emt 0:04:40]} 21. Rxc3 {[%emt 0:00:35]} Rxc3 {[%emt 0:03:07]} 22. bxc3 {[%emt 0:03:35]} Qxa3+ {[%emt 0:00:08]} 23. Kd1 {[%emt 0:00:07]} Qa1+ {[%emt 0:00:12]} 24. Qc1 {[%emt 0:00:08]} Qxc3 {[%emt 0:00:09]} 25. Bd3 {[%emt 0:02:20]} Qxd4 {[%emt 0:03:41]} 26. Nf3 {[%emt 0:00:28]} Qb4 {[%emt 0:02:53]} 27. Bxe4 {[%emt 0:03:06]} dxe4 {[%emt 0:00:24]} 28. Ng5 {[%emt 0:01:08]} gxf5 {[%emt 0:01:11]} 29. h5 {[%emt 0:03:38]} Qc4 {[%emt 0:04:07]} 30. h6 {[%emt 0:01:54]} Bc3 {[%emt 0:01:35]} 31. h7+ {[%emt 0:00:37]} Kh8 {[%emt 0:00:00]} 32. Qe3 {[%emt 0:01:38]} Qd5+ {[%emt 0:02:30]} 33. Kc1 {[%emt 0:01:14]} Bf6 {[%emt 0:00:18]} 34. Qb3 {[%emt 0:01:34]} Qxb3 {[%emt 0:00:01]} 35. cxb3 {[%emt 0:00:08]} Bxg5 {[%emt 0:00:01]} 36. Bxg5 {[%emt 0:00:19]} f6 {[%emt 0:00:31]} 37. Be3 {[%emt 0:00:12]} b6 {[%emt 0:00:26]} 38. Rh5 {[%emt 0:01:35]} Nb4 {[%emt 0:00:56]} 39. Kd2 {[%emt 0:03:48]} Nd3 {[%emt 0:03:41]} 40. Rxf5 {[%emt 0:01:45]} Kxh7 {[%emt 0:00:00]} 41. Rh5+ {[%emt 0:00:18]} Kg7 {[%emt 0:00:00]} 42. Rd5 {[%emt 0:01:21]} Ne5 {[%emt 0:00:00]} 43. Rxe5 {[%emt 0:02:53]} fxe5 {[%emt 0:00:00]} 44. b4 {[%emt 0:00:24]} Kf6 {[%emt 0:00:00]} 45. Kc3 {[%emt 0:00:40]} Kf5 {[%emt 0:00:00]} 46. Kd2 {[%emt 0:01:10]} Ke6 {[%emt 0:03:30]} 47. Kc2 {[%emt 0:22:27]} Kd5 {[%emt 0:00:00]} 48. Kc3 {[%emt 0:00:00]} Kc6 {[%emt 0:00:00]} 49. Kc4 {[%emt 0:00:00]} a6 {[%emt 0:00:00]} 50. Kc3 {[%emt 0:00:00]} a5 {[%emt 0:00:00]} 51. bxa5 {[%emt 0:00:00]} bxa5 {[%emt 0:00:00]} 52. Bc1 {[%emt 0:00:00]} a4 {[%emt 0:00:11]} 53. Ba3 {[%emt 0:00:00]} Kd5 {[%emt 0:00:39]} 54. Bxe7 {[%emt 0:00:00]} Ke6 {[%emt 0:00:13]} 55. Ba3 {[%emt 0:00:00]} Kf5 {[%emt 0:00:03]} 56. Kd2 {[%emt 0:00:00]} Kf4 {[%emt 0:00:06]} 57. Ke2 {[%emt 0:00:00]} e3 {[%emt 0:00:03]} 58. Be7 {[%emt 0:00:00]} Ke4 {[%emt 0:00:04]} 59. Bf8 {[%emt 0:00:00]} 1/2-1/2

[Event "FIDE World Cup O12-A 2024"]
[Site "Batumi"]
[Date "2024.06.26"]
[Round "4.5"]
[White "Yin, Zeming"]
[Black "Haresh, Venkata Narayanaswam"]
[Result "1-0"]
[ECO "B98"]
[WhiteElo "1832"]
[BlackElo "1728"]
[Annotator "NA RC"]
[PlyCount "135"]
[EventDate "2024.06.23"]
[EventType "swiss"]
[EventCountry "GEO"]
[SourceTitle "playchess.com"]
[Source "ChessBase"]
[SourceQuality "1"]
[TimeControl "5400+30"]

1. e4 {[%emt 0:00:21]} c5 {[%emt 0:00:17]} 2. Nf3 {[%emt 0:00:30]} d6 {[%emt 0:00:13]} 3. d4 {[%emt 0:00:15]} cxd4 {[%emt 0:00:08]} 4. Nxd4 {[%emt 0:00:02]} Nf6 {[%emt 0:00:15]} 5. Nc3 {[%emt 0:00:18]} a6 {[%emt 0:00:06]} 6. Bg5 {[%emt 0:00:26]} e6 {[%emt 0:00:11]} 7. f4 {[%emt 0:00:15]} Be7 {[%emt 0:00:13]} 8. Qf3 {[%emt 0:00:42]} h6 {[%emt 0:00:25]} 9. Bh4 {[%emt 0:00:49]} Nbd7 {[%emt 0:00:14]} 10. Bc4 {[%emt 0:00:53] B98: Sicilian Najdorf: 6 Bg5 e6 7 f4 Be7, sidelines.} g5 {[%emt 0:00:54]} 11. fxg5 {[%emt 0:02:04]} Ne5 {[%emt 0:00:35]} 12. Qe2 {[%emt 0:00:47]} Nfg4 {[%emt 0:01:26]} 13. Bb3 {[%emt 0:01:13]} Qc7 {[%emt 0:10:33]} 14. Bg3 {[%emt 0:02:00]} hxg5 {[%emt 0:05:09]} 15. Nf3 {[%emt 0:01:35]} Bd7 {[%emt 0:03:16]} 16. O-O-O {[%emt 0:02:13]} O-O-O {[%emt 0:01:34]} 17. Nxe5 {[%emt 0:00:58]} Nxe5 {[%emt 0:01:20]} 18. Qe3 {[%emt 0:05:39]} Kb8 {[%emt 0:05:06]} 19. h3 {[%emt 0:07:13]} Rh7 $11 {[%emt 0:07:39]} 20. Qd2 {[%emt 0:26:24]} Bc6 {[%emt 0:04:21]} 21. Qd4 {[%emt 0:01:11]} g4 {[%emt 0:16:25]} 22. hxg4 {[%emt 0:01:02]} Rg7 {[%emt 0:01:09]} 23. Bf2 {[%emt 0:06:28]} Kc8 {[%emt 0:04:36]} 24. Na4 {[%emt 0:04:00]} Bxa4 {[%emt 0:12:44]} 25. Bxa4 {[%emt 0:01:03]} b5 {[%emt 0:05:10]} 26. Rh3 {[%emt 0:10:29]} Kb8 {[%emt 0:06:39]} 27. Bb3 {[%emt 0:11:29]} Rxg4 {[%emt 0:00:28]} 28. Rg3 {[%emt 0:05:14]} Rdg8 {[%emt 0:01:29]} 29. Rxg4 {[%emt 0:00:02]} Rxg4 {[%emt 0:00:43]} 30. g3 {[%emt 0:04:56]} d5 {[%emt 0:03:20]} 31. Rh1 {[%emt 0:02:37]} Bg5+ {[%emt 0:02:51]} 32. Kb1 {[%emt 0:00:41]} Rxe4 {[%emt 0:01:26]} 33. Rh8+ {[%emt 0:00:31]} Bd8 {[%emt 0:01:02]} 34. Qd2 {[%emt 0:00:43]} Ng6 {[%emt 0:01:42]} 35. Rg8 {[%emt 0:00:38]} Kc8 {[%emt 0:02:55]} 36. Bxd5 {[%emt 0:01:41]} exd5 {[%emt 0:00:37]} 37. Qxd5 {[%emt 0:00:03]} Re6 {[%emt 0:00:30]} 38. Qa8+ {[%emt 0:00:35]} Kd7 {[%emt 0:00:20]} 39. Qd5+ {[%emt 0:00:02]} Qd6 {[%emt 0:01:06]} 40. Qb7+ {[%emt 0:00:09]} Bc7 {[%emt 0:00:35]} 41. Qc8+ {[%emt 0:01:26]} Ke7 {[%emt 0:00:02]} 42. a3 {[%emt 0:00:41]} Qd7 {[%emt 0:01:07]} 43. Qb7 {[%emt 0:00:51]} Rd6 {[%emt 0:00:33]} 44. Bc5 {[%emt 0:00:16]} Nf8 {[%emt 0:00:32]} 45. Qxa6 {[%emt 0:00:49]} Ne6 {[%emt 0:00:31]} 46. Bb4 {[%emt 0:00:13]} Kf6 {[%emt 0:00:17]} 47. Bxd6 {[%emt 0:00:23]} Bxd6 {[%emt 0:00:13]} 48. Qc8 {[%emt 0:00:30]} Qxc8 {[%emt 0:00:26]} 49. Rxc8 {[%emt 0:00:07]} Bxg3 {[%emt 0:00:06]} 50. c4 {[%emt 0:00:17]} bxc4 {[%emt 0:00:22]} 51. Rxc4 {[%emt 0:00:06]} Ke5 {[%emt 0:00:31]} 52. a4 {[%emt 0:00:10]} f5 {[%emt 0:00:30]} 53. a5 {[%emt 0:00:20]} Kd5 {[%emt 0:00:12]} 54. Rc1 {[%emt 0:00:23]} Nc5 {[%emt 0:00:32]} 55. b4 {[%emt 0:00:20]} Nd3 {[%emt 0:00:37]} 56. a6 {[%emt 0:00:21]} Bf2 {[%emt 0:01:25]} 57. Rf1 {[%emt 0:00:20]} Kc6 {[%emt 0:00:45]} 58. b5+ {[%emt 0:00:20]} Kb6 {[%emt 0:00:26]} 59. Kc2 {[%emt 0:00:13]} Nb4+ {[%emt 0:00:33]} 60. Kb3 {[%emt 0:00:16]} Bc5 {[%emt 0:00:33]} 61. Rxf5 {[%emt 0:00:09]} Bd6 {[%emt 0:01:05]} 62. Rf6 {[%emt 0:00:26]} Nxa6 {[%emt 0:00:00]} 63. bxa6 {[%emt 0:00:15]} Kc7 {[%emt 0:00:13]} 64. Rxd6 {[%emt 0:00:12]} Kb8 {[%emt 0:00:07]} 65. Kb4 {[%emt 0:00:08]} Ka7 {[%emt 0:00:04]} 66. Kb5 {[%emt 0:00:04]} Ka8 {[%emt 0:00:04]} 67. Kb6 {[%emt 0:00:03]} Kb8 {[%emt 0:00:04]} 68. Rd8# {[%emt 0:06:40]} 1-0

[Event "FIDE World Cup O12-A 2024"]
[Site "Batumi"]
[Date "2024.06.26"]
[Round "4.6"]
[White "Guo, Ethan"]
[Black "Yang, Maxwell"]
[Result "1-0"]
[ECO "B90"]
[WhiteElo "2136"]
[BlackElo "1979"]
[Annotator "RC"]
[PlyCount "69"]
[EventDate "2024.06.23"]
[EventType "swiss"]
[EventCountry "GEO"]
[SourceTitle "playchess.com"]
[Source "ChessBase"]
[SourceQuality "1"]
[TimeControl "5400+30"]

1. e4 {[%emt 0:02:38]} c5 {[%emt 0:00:18]} 2. Nf3 {[%emt 0:00:06]} d6 {[%emt 0:00:07]} 3. d4 {[%emt 0:00:04]} cxd4 {[%emt 0:00:05]} 4. Nxd4 {[%emt 0:00:06]} Nf6 {[%emt 0:00:07]} 5. Nc3 {[%emt 0:00:05]} a6 {[%emt 0:00:09]} 6. Be3 {[%emt 0:00:21]} e5 {[%emt 0:00:07]} 7. Nf3 {[%emt 0:00:05]} Be7 {[%emt 0:00:06]} 8. h3 {[%emt 0:00:05]} Qc7 {[%emt 0:00:12]} 9. a4 {[%emt 0:00:38]} O-O {[%emt 0:07:32]} 10. a5 {[%emt 0:00:23]} Be6 {[%emt 0:00:16]} 11. Nd5 {[%emt 0:04:25]} Bxd5 {[%emt 0:02:37]} 12. exd5 {[%emt 0:00:09]} Nbd7 {[%emt 0:01:33]} 13. c4 {[%emt 0:01:29]} Rfc8 {[%emt 0:09:13]} 14. Be2 {[%emt 0:02:35]} b5 {[%emt 0:08:25]} 15. axb6 {[%emt 0:08:07]} Nxb6 {[%emt 0:00:11]} 16. Nd2 {[%emt 0:00:10]} a5 {[%emt 0:05:02]} 17. O-O {[%emt 0:00:28]} Nbd7 {[%emt 0:00:57]} 18. Nb1 {[%emt 0:04:03]} Ne4 {[%emt 0:20:31]} 19. Na3 {[%emt 0:02:52]} Qb8 {[%emt 0:06:37]} 20. Nb5 {[%emt 0:02:50]} Bd8 {[%emt 0:03:14]} 21. Bd3 {[%emt 0:04:01]} Nef6 {[%emt 0:01:19]} 22. b4 {[%emt 0:09:01]} e4 {[%emt 0:28:31]} 23. Be2 {[%emt 0:00:17]} Ne5 {[%emt 0:00:20]} 24. c5 {[%emt 0:03:28]} Bc7 {[%emt 0:02:34]} 25. c6 {[%emt 0:01:33]} Bb6 {[%emt 0:01:46]} 26. bxa5 {[%emt 0:05:49]} Rxa5 {[%emt 0:00:54]} 27. Rxa5 {[%emt 0:00:43]} Bxa5 {[%emt 0:00:05]} 28. Ba7 {[%emt 0:00:13]} Qa8 {[%emt 0:00:15]} 29. Qd4 {[%emt 0:00:44]} Bc7 {[%emt 0:01:17]} 30. Ra1 {[%emt 0:01:34]} Nxc6 {[%emt 0:00:39]} 31. dxc6 {[%emt 0:00:20]} Qxc6 {[%emt 0:00:07]} 32. Nxc7 {[%emt 0:00:32]} Qxc7 {[%emt 0:00:44]} 33. Bb6 {[%emt 0:00:34]} Qc6 {[%emt 0:00:30]} 34. Ba5 {[%emt 0:01:41]} h6 {[%emt 0:00:34]} 35. Bd2 {[%emt 0:00:37]} 1-0